[Event "Late-Titled-Tuesday-Blitz-April-30-2024"]
[Site "Chess.com"]
[Date "2024.04.30"]
[Round "8"]
[White "Payyappat"]
[Black "samidescalona2002"]
[Result "1-0"]
[WhiteElo "2510"]
[BlackElo "2756"]
[TimeControl "180+1"]
[EndTime "15:29:23 PDT"]
[Termination "Payyappat won on time"]

1. e4 {[%clk 0:03:00.9]} 1... c5 {[%clk 0:02:57]} 2. Nf3 {[%clk 0:03:00]} 2...
d6 {[%clk 0:02:55.4]} 3. d4 {[%clk 0:03:00.9]} 3... cxd4 {[%clk 0:02:55.8]} 4.
Nxd4 {[%clk 0:03:01.8]} 4... Nf6 {[%clk 0:02:56.2]} 5. Nc3 {[%clk 0:03:01.8]}
5... Nc6 {[%clk 0:02:56.3]} 6. Bg5 {[%clk 0:02:56.1]} 6... Bd7 {[%clk 0:02:56]}
7. f4 {[%clk 0:02:51.9]} 7... Qb6 {[%clk 0:02:41]} 8. Nxc6 {[%clk 0:02:46.3]}
8... Bxc6 {[%clk 0:02:07.9]} 9. Qd3 {[%clk 0:02:36]} 9... h6 {[%clk 0:02:01.8]}
10. Bxf6 {[%clk 0:02:31.3]} 10... gxf6 {[%clk 0:02:02.7]} 11. Be2 {[%clk
0:02:30.6]} 11... h5 {[%clk 0:01:44.5]} 12. Bf3 {[%clk 0:02:26.8]} 12... e6
{[%clk 0:01:34.9]} 13. O-O-O {[%clk 0:02:22.6]} 13... O-O-O {[%clk 0:01:33]} 14.
Kb1 {[%clk 0:02:05.6]} 14... a6 {[%clk 0:01:21.4]} 15. Rd2 {[%clk 0:02:01.6]}
15... Bh6 {[%clk 0:01:17.7]} 16. g3 {[%clk 0:02:00.6]} 16... h4 {[%clk
0:01:18.3]} 17. Rhd1 {[%clk 0:01:57]} 17... hxg3 {[%clk 0:01:17.7]} 18. hxg3
{[%clk 0:01:57.9]} 18... Bf8 {[%clk 0:01:09.6]} 19. Qc4 {[%clk 0:01:47.9]} 19...
Kb8 {[%clk 0:01:02.2]} 20. Na4 {[%clk 0:01:37.9]} 20... Qb5 {[%clk 0:00:56.8]}
21. Qxb5 {[%clk 0:01:31.9]} 21... Bxb5 {[%clk 0:00:57.7]} 22. Nc3 {[%clk
0:01:31.8]} 22... Bc6 {[%clk 0:00:57.7]} 23. Ne2 {[%clk 0:01:30.1]} 23... Be7
{[%clk 0:00:54.2]} 24. Nd4 {[%clk 0:01:28.1]} 24... Bd7 {[%clk 0:00:53.5]} 25.
Nb3 {[%clk 0:01:22.1]} 25... Bc8 {[%clk 0:00:43.5]} 26. Rd3 {[%clk 0:01:08.5]}
26... Rdg8 {[%clk 0:00:41.8]} 27. g4 {[%clk 0:00:43.1]} 27... Rh4 {[%clk
0:00:32.7]} 28. Na5 {[%clk 0:00:40.5]} 28... Rd8 {[%clk 0:00:16.9]} 29. Nc4
{[%clk 0:00:32.5]} 29... Kc7 {[%clk 0:00:16.7]} 30. b3 {[%clk 0:00:27.1]} 30...
b5 {[%clk 0:00:08.6]} 31. Ne3 {[%clk 0:00:21.9]} 31... Rh3 {[%clk 0:00:07]} 32.
Bg2 {[%clk 0:00:14.5]} 32... Rh2 {[%clk 0:00:06.8]} 33. R3d2 {[%clk 0:00:14.1]}
33... Bb7 {[%clk 0:00:05]} 34. c4 {[%clk 0:00:12.1]} 34... b4 {[%clk 0:00:04.4]}
35. Kb2 {[%clk 0:00:12]} 35... Rg8 {[%clk 0:00:04.3]} 36. Bf3 {[%clk 0:00:10.5]}
36... Rxd2+ {[%clk 0:00:03.4]} 37. Rxd2 {[%clk 0:00:11.4]} 37... Bf8 {[%clk
0:00:03.8]} 38. Nc2 {[%clk 0:00:11]} 38... Bh6 {[%clk 0:00:03.9]} 39. Nxb4
{[%clk 0:00:10.8]} 39... Bxf4 {[%clk 0:00:04.2]} 40. Rd3 {[%clk 0:00:11]} 40...
Be5+ {[%clk 0:00:05.1]} 41. Ka3 {[%clk 0:00:10.9]} 41... Rh8 {[%clk 0:00:05.3]}
42. Ka4 {[%clk 0:00:11]} 42... Kb6 {[%clk 0:00:04.6]} 43. Nc2 {[%clk 0:00:08.6]}
43... a5 {[%clk 0:00:03]} 44. Na3 {[%clk 0:00:07.9]} 44... Bc6+ {[%clk
0:00:03.1]} 45. Nb5 {[%clk 0:00:07.6]} 45... Kc5 {[%clk 0:00:03.1]} 46. a3
{[%clk 0:00:07.4]} 46... Kb6 {[%clk 0:00:02.5]} 47. b4 {[%clk 0:00:04.9]} 47...
axb4 {[%clk 0:00:03.4]} 48. Kxb4 {[%clk 0:00:05.8]} 48... Ra8 {[%clk 0:00:04.1]}
49. Nxd6 {[%clk 0:00:05.6]} 49... Ra4+ {[%clk 0:00:03.7]} 50. Kb3 {[%clk
0:00:05.9]} 50... Ra8 {[%clk 0:00:01.6]} 51. Nxf7 {[%clk 0:00:05.2]} 51... Bf4
{[%clk 0:00:01.8]} 52. Nd6 {[%clk 0:00:04.8]} 52... Kc5 {[%clk 0:00:02]} 53. Nf7
{[%clk 0:00:03.7]} 53... Bc7 {[%clk 0:00:02.5]} 54. g5 {[%clk 0:00:03.5]} 54...
Rb8+ {[%clk 0:00:03.4]} 55. Kc3 {[%clk 0:00:03.5]} 55... fxg5 {[%clk 0:00:04.3]}
56. Nxg5 {[%clk 0:00:03.6]} 56... Ba5+ {[%clk 0:00:05]} 57. Kc2 {[%clk
0:00:03.8]} 57... Ba4+ {[%clk 0:00:05.7]} 58. Kc1 {[%clk 0:00:04.2]} 58... Rg8
{[%clk 0:00:06.2]} 59. Nxe6+ {[%clk 0:00:04.3]} 59... Kxc4 {[%clk 0:00:05.5]}
60. Be2 {[%clk 0:00:04.2]} 60... Rg1+ {[%clk 0:00:04.6]} 61. Rd1+ {[%clk
0:00:04.5]} 61... Kb3 {[%clk 0:00:02.4]} 62. Rxg1 {[%clk 0:00:05.4]} 62... Kxa3
{[%clk 0:00:02.5]} 63. Rg3+ {[%clk 0:00:05.3]} 63... Kb4 {[%clk 0:00:02]} 64.
Nd4 {[%clk 0:00:06]} 64... Bc7 {[%clk 0:00:01.3]} 65. Rg4 {[%clk 0:00:05.6]}
65... Be5 {[%clk 0:00:01.5]} 66. Nc2+ {[%clk 0:00:06]} 66... Kc3 {[%clk
0:00:00.5]} 67. Rh4 {[%clk 0:00:05.5]} 67... Bd6 {[%clk 0:00:01.4]} 68. Rh3+
{[%clk 0:00:05.8]} 1-0

[Event "Late-Titled-Tuesday-Blitz-April-30-2024"]
[Site "Chess.com"]
[Date "2024.04.30"]
[Round "8"]
[White "IMRosen"]
[Black "Sjakkerntobi"]
[Result "0-1"]
[WhiteElo "2678"]
[BlackElo "2537"]
[TimeControl "180+1"]
[EndTime "15:29:30 PDT"]
[Termination "Sjakkerntobi won by checkmate"]

1. c4 {[%clk 0:03:00.9]} 1... c5 {[%clk 0:03:00.1]} 2. Nf3 {[%clk 0:03:00.7]}
2... g6 {[%clk 0:03:00.6]} 3. e3 {[%clk 0:02:56.4]} 3... Bg7 {[%clk 0:02:58.9]}
4. d4 {[%clk 0:02:56.2]} 4... Nf6 {[%clk 0:02:58.1]} 5. d5 {[%clk 0:02:56.2]}
5... e6 {[%clk 0:02:58.2]} 6. Nc3 {[%clk 0:02:56]} 6... exd5 {[%clk 0:02:58.8]}
7. cxd5 {[%clk 0:02:56.9]} 7... d6 {[%clk 0:02:59.1]} 8. h3 {[%clk 0:02:54.5]}
8... O-O {[%clk 0:02:57.9]} 9. a4 {[%clk 0:02:51.5]} 9... Nbd7 {[%clk 0:02:56]}
10. Be2 {[%clk 0:02:51.9]} 10... Re8 {[%clk 0:02:56]} 11. O-O {[%clk 0:02:52.3]}
11... a6 {[%clk 0:02:54.8]} 12. Nd2 {[%clk 0:02:50.4]} 12... Rb8 {[%clk
0:02:52.6]} 13. Nc4 {[%clk 0:02:39.3]} 13... Ne5 {[%clk 0:02:42]} 14. a5 {[%clk
0:02:32.2]} 14... Nxc4 {[%clk 0:02:40.8]} 15. Bxc4 {[%clk 0:02:33.1]} 15... Nd7
{[%clk 0:02:39.3]} 16. e4 {[%clk 0:02:29.3]} 16... Qh4 {[%clk 0:02:34]} 17. Re1
{[%clk 0:02:16.4]} 17... Be5 {[%clk 0:02:12.6]} 18. Bf1 {[%clk 0:02:11.6]} 18...
b5 {[%clk 0:01:58.8]} 19. axb6 {[%clk 0:02:10.2]} 19... Rxb6 {[%clk 0:01:58.4]}
20. g3 {[%clk 0:02:05.2]} 20... Qf6 {[%clk 0:01:47.8]} 21. Qc2 {[%clk
0:02:05.4]} 21... Bd4 {[%clk 0:01:42.6]} 22. Be3 {[%clk 0:01:44.1]} 22... Ne5
{[%clk 0:01:41.3]} 23. Re2 {[%clk 0:01:21.5]} 23... Rxb2 {[%clk 0:01:13.5]} 24.
Qxb2 {[%clk 0:00:34.2]} 24... Nf3+ {[%clk 0:01:12.6]} 25. Kg2 {[%clk 0:00:34.7]}
25... Bxc3 {[%clk 0:01:13.4]} 26. e5 {[%clk 0:00:24.8]} 26... Bxe5 {[%clk
0:00:30.2]} 27. Bh6 {[%clk 0:00:24.9]} 27... g5 {[%clk 0:00:06.4]} 28. Qb3
{[%clk 0:00:25.2]} 28... Bxh3+ {[%clk 0:00:03.4]} 29. Kxh3 {[%clk 0:00:14.3]}
29... Ng1+ {[%clk 0:00:03.4]} 30. Kg2 {[%clk 0:00:13.1]} 30... Nxe2 {[%clk
0:00:04.3]} 31. Rxa6 {[%clk 0:00:06.3]} 31... Qxh6 {[%clk 0:00:03.4]} 32. Bxe2
{[%clk 0:00:06.3]} 32... Qf6 {[%clk 0:00:02.5]} 33. Qa4 {[%clk 0:00:06]} 33...
Rf8 {[%clk 0:00:02.9]} 34. Bf3 {[%clk 0:00:05.6]} 34... Bd4 {[%clk 0:00:02.9]}
35. Qc2 {[%clk 0:00:05.5]} 35... Qg6 {[%clk 0:00:02.9]} 36. Be4 {[%clk 0:00:05]}
36... f5 {[%clk 0:00:02.5]} 37. Bd3 {[%clk 0:00:03.4]} 37... Qf6 {[%clk
0:00:02.2]} 38. Rc6 {[%clk 0:00:02]} 38... Re8 {[%clk 0:00:02.7]} 39. Rc7 {[%clk
0:00:02.3]} 39... Re7 {[%clk 0:00:02.6]} 40. Rc8+ {[%clk 0:00:01.9]} 40... Kg7
{[%clk 0:00:03.1]} 41. Bxf5 {[%clk 0:00:02.6]} 41... Rf7 {[%clk 0:00:03.2]} 42.
g4 {[%clk 0:00:02.3]} 42... Qe5 {[%clk 0:00:03.5]} 43. Qe4 {[%clk 0:00:02.5]}
43... Qxe4+ {[%clk 0:00:03.9]} 44. Bxe4 {[%clk 0:00:03.4]} 44... Rxf2+ {[%clk
0:00:04.3]} 45. Kg3 {[%clk 0:00:04.2]} 45... Rf4 {[%clk 0:00:03.9]} 46. Rc7+
{[%clk 0:00:04.3]} 46... Kf6 {[%clk 0:00:03.7]} 47. Bxh7 {[%clk 0:00:04.7]}
47... Be5 {[%clk 0:00:04.2]} 48. Kh3 {[%clk 0:00:04.3]} 48... Rd4 {[%clk
0:00:04.5]} 49. Bg8 {[%clk 0:00:04.2]} 49... Bf4 {[%clk 0:00:03.6]} 50. Be6
{[%clk 0:00:03.7]} 50... Rd2 {[%clk 0:00:03.1]} 51. Rf7+ {[%clk 0:00:03.3]}
51... Ke5 {[%clk 0:00:03.8]} 52. Rf5+ {[%clk 0:00:03]} 52... Kd4 {[%clk
0:00:04]} 53. Rxf4+ {[%clk 0:00:03.6]} 53... gxf4 {[%clk 0:00:04.8]} 54. g5
{[%clk 0:00:04.1]} 54... Ke5 {[%clk 0:00:05.5]} 55. Kg4 {[%clk 0:00:03.7]} 55...
f3 {[%clk 0:00:05.4]} 56. Kxf3 {[%clk 0:00:03.9]} 56... Rd4 {[%clk 0:00:05.7]}
57. g6 {[%clk 0:00:03.5]} 57... Kf6 {[%clk 0:00:05.9]} 58. Bf7 {[%clk
0:00:04.2]} 58... c4 {[%clk 0:00:06.3]} 59. Ke3 {[%clk 0:00:04.4]} 59... Rd1
{[%clk 0:00:06.7]} 60. Ke2 {[%clk 0:00:04.7]} 60... Ra1 {[%clk 0:00:07.1]} 61.
Kd2 {[%clk 0:00:04.7]} 61... Ra3 {[%clk 0:00:07.4]} 62. Kc2 {[%clk 0:00:04.9]}
62... Rg3 {[%clk 0:00:07.5]} 63. Kb2 {[%clk 0:00:04.7]} 63... Ke5 {[%clk
0:00:08.2]} 64. Be6 {[%clk 0:00:03.6]} 64... Kd4 {[%clk 0:00:08.7]} 65. Bf7
{[%clk 0:00:01.5]} 65... c3+ {[%clk 0:00:08.6]} 66. Kb3 {[%clk 0:00:02.1]} 66...
Rg2 {[%clk 0:00:08.5]} 67. g7 {[%clk 0:00:01.7]} 67... Rxg7 {[%clk 0:00:08.1]}
68. Bh5 {[%clk 0:00:02.1]} 68... Rg1 {[%clk 0:00:08.5]} 69. Bf3 {[%clk
0:00:01.4]} 69... Re1 {[%clk 0:00:09.1]} 70. Bh5 {[%clk 0:00:01.5]} 70... Kd3
{[%clk 0:00:09.3]} 71. Bg6+ {[%clk 0:00:01.5]} 71... Kd2 {[%clk 0:00:09.9]} 72.
Kb4 {[%clk 0:00:01.5]} 72... c2 {[%clk 0:00:10.3]} 73. Bxc2 {[%clk 0:00:01.3]}
73... Kxc2 {[%clk 0:00:11.2]} 74. Kb5 {[%clk 0:00:02.1]} 74... Rh1 {[%clk
0:00:11.6]} 75. Kc6 {[%clk 0:00:02.7]} 75... Rh6 {[%clk 0:00:12.5]} 76. Kb5
{[%clk 0:00:03.1]} 76... Kd3 {[%clk 0:00:13.4]} 77. Kb4 {[%clk 0:00:03.6]} 77...
Ke4 {[%clk 0:00:14.3]} 78. Kb5 {[%clk 0:00:04.5]} 78... Kxd5 {[%clk 0:00:14.8]}
79. Ka5 {[%clk 0:00:04.9]} 79... Ke5 {[%clk 0:00:15.7]} 80. Kb4 {[%clk
0:00:05.2]} 80... Rh5 {[%clk 0:00:16.6]} 81. Kc3 {[%clk 0:00:06]} 81... Rh4
{[%clk 0:00:17.4]} 82. Kd2 {[%clk 0:00:06.9]} 82... Rd4+ {[%clk 0:00:17.9]} 83.
Ke2 {[%clk 0:00:07.8]} 83... Ke4 {[%clk 0:00:18.4]} 84. Ke1 {[%clk 0:00:07.9]}
84... Rd3 {[%clk 0:00:19.1]} 85. Kf1 {[%clk 0:00:08.8]} 85... Kf3 {[%clk
0:00:19.7]} 86. Ke1 {[%clk 0:00:09.7]} 86... d5 {[%clk 0:00:20.2]} 87. Kf1
{[%clk 0:00:09.9]} 87... Rd1# {[%clk 0:00:21.1]} 0-1

[Event "Late-Titled-Tuesday-Blitz-April-30-2024"]
[Site "Chess.com"]
[Date "2024.04.30"]
[Round "8"]
[White "Mikhail_Golubev"]
[Black "H3nriqueTV"]
[Result "1-0"]
[WhiteElo "2601"]
[BlackElo "2420"]
[TimeControl "180+1"]
[EndTime "15:29:30 PDT"]
[Termination "Mikhail_Golubev won by resignation"]

1. e4 {[%clk 0:03:00.9]} 1... c5 {[%clk 0:02:59.5]} 2. Nf3 {[%clk 0:03:00.6]}
2... b6 {[%clk 0:02:59.5]} 3. d4 {[%clk 0:02:59.5]} 3... cxd4 {[%clk 0:03:00.4]}
4. Nxd4 {[%clk 0:02:59.5]} 4... Bb7 {[%clk 0:03:01]} 5. Nc3 {[%clk 0:02:58]}
5... a6 {[%clk 0:03:01.6]} 6. Bd3 {[%clk 0:02:54.8]} 6... e6 {[%clk 0:03:01.7]}
7. O-O {[%clk 0:02:54.4]} 7... Qc7 {[%clk 0:03:02]} 8. Qe2 {[%clk 0:02:47.9]}
8... Be7 {[%clk 0:02:48.2]} 9. f4 {[%clk 0:02:44.3]} 9... Bc5 {[%clk 0:02:47.3]}
10. Be3 {[%clk 0:02:41.2]} 10... Nc6 {[%clk 0:02:44.6]} 11. Nb3 {[%clk
0:02:32.3]} 11... Bxe3+ {[%clk 0:02:44.4]} 12. Qxe3 {[%clk 0:02:33.2]} 12... Nf6
{[%clk 0:02:43.9]} 13. e5 {[%clk 0:02:27.5]} 13... Ng4 {[%clk 0:02:43.9]} 14.
Qg3 {[%clk 0:02:26.2]} 14... h5 {[%clk 0:02:24.9]} 15. h3 {[%clk 0:02:26.1]}
15... Nh6 {[%clk 0:02:24.8]} 16. Qxg7 {[%clk 0:01:42.8]} 16... O-O-O {[%clk
0:02:23.8]} 17. Qg3 {[%clk 0:01:20.2]} 17... Rdg8 {[%clk 0:02:19.6]} 18. Qf2
{[%clk 0:01:16.2]} 18... Nf5 {[%clk 0:02:05.5]} 19. Bxf5 {[%clk 0:01:13.3]}
19... exf5 {[%clk 0:02:04.4]} 20. Nd5 {[%clk 0:01:13.3]} 20... Qd8 {[%clk
0:02:03.1]} 21. Nxb6+ {[%clk 0:01:10.3]} 21... Kb8 {[%clk 0:02:03.2]} 22. Nc5
{[%clk 0:01:08.9]} 22... Nxe5 {[%clk 0:01:51.4]} 23. Nxb7 {[%clk 0:01:01.5]}
23... Nf3+ {[%clk 0:01:39.7]} 24. Kh1 {[%clk 0:00:47.4]} 24... Kxb7 {[%clk
0:01:22.7]} 25. Rad1 {[%clk 0:00:31.9]} 25... d6 {[%clk 0:00:43.1]} 26. Nc4
{[%clk 0:00:30.1]} 26... Nh4 {[%clk 0:00:22.1]} 27. Rxd6 {[%clk 0:00:25.5]}
27... Qc7 {[%clk 0:00:16.2]} 28. Qxh4 {[%clk 0:00:18.4]} 28... Qxc4 {[%clk
0:00:16.4]} 29. Qe7+ {[%clk 0:00:17.6]} 29... Kc8 {[%clk 0:00:10.1]} 30. Rfd1
{[%clk 0:00:15.3]} 30... Qc7 {[%clk 0:00:08.7]} 31. Qxc7+ {[%clk 0:00:12.6]}
31... Kxc7 {[%clk 0:00:09.1]} 32. Rd7+ {[%clk 0:00:13.2]} 32... Kc6 {[%clk
0:00:09.6]} 33. Rxf7 {[%clk 0:00:13.7]} 33... Rg3 {[%clk 0:00:09.9]} 34. Rxf5
{[%clk 0:00:13]} 34... Rhg8 {[%clk 0:00:10.6]} 35. Rd2 {[%clk 0:00:11.9]} 35...
h4 {[%clk 0:00:11.2]} 36. Rh5 {[%clk 0:00:10.9]} 36... Re3 {[%clk 0:00:09.8]}
37. Rxh4 {[%clk 0:00:10.3]} 37... Re1+ {[%clk 0:00:09.5]} 38. Kh2 {[%clk
0:00:10.6]} 38... Rb1 {[%clk 0:00:10.4]} 39. c3 {[%clk 0:00:08.2]} 39... Re8
{[%clk 0:00:11]} 40. f5 {[%clk 0:00:07.2]} 40... Ree1 {[%clk 0:00:10.7]} 41.
Rc4+ {[%clk 0:00:07]} 41... Kb5 {[%clk 0:00:10.4]} 42. Rb4+ {[%clk 0:00:07.3]}
42... Kc5 {[%clk 0:00:11.1]} 43. Kg3 {[%clk 0:00:07.2]} 43... Re5 {[%clk
0:00:08.7]} 44. Rf2 {[%clk 0:00:07]} 44... Rbe1 {[%clk 0:00:08.1]} 45. f6 {[%clk
0:00:07.2]} 45... Rg5+ {[%clk 0:00:08.3]} 46. Kh2 {[%clk 0:00:07.5]} 46... Re8
{[%clk 0:00:08.5]} 47. f7 {[%clk 0:00:07]} 47... Rf8 {[%clk 0:00:08.8]} 48. Rbf4
{[%clk 0:00:07.6]} 48... Rg7 {[%clk 0:00:08.7]} 49. R4f3 {[%clk 0:00:07.9]}
49... Kd6 {[%clk 0:00:09.2]} 50. b3 {[%clk 0:00:08.2]} 50... Ke7 {[%clk
0:00:08.8]} 51. c4 {[%clk 0:00:08.8]} 51... Rg6 {[%clk 0:00:08.6]} 52. h4 {[%clk
0:00:08.7]} 52... Rg4 {[%clk 0:00:08.7]} 53. g3 {[%clk 0:00:09]} 53... Re4
{[%clk 0:00:08.6]} 54. Kh3 {[%clk 0:00:09.4]} 54... Re6 {[%clk 0:00:08.1]} 55.
Rf4 {[%clk 0:00:09.6]} 55... Re3 {[%clk 0:00:08.2]} 56. h5 {[%clk 0:00:09.5]}
56... Re5 {[%clk 0:00:08.1]} 57. Kh4 {[%clk 0:00:09.7]} 57... Re1 {[%clk
0:00:08.5]} 58. g4 {[%clk 0:00:09.6]} 58... Rh1+ {[%clk 0:00:08.8]} 59. Kg5
{[%clk 0:00:09.8]} 59... Re1 {[%clk 0:00:08.4]} 60. Rf5 {[%clk 0:00:09.3]} 60...
Re6 {[%clk 0:00:08.7]} 61. Kh4 {[%clk 0:00:09.1]} 61... Re1 {[%clk 0:00:06.4]}
62. R5f3 {[%clk 0:00:08.9]} 62... Rh1+ {[%clk 0:00:06.3]} 63. Rh3 {[%clk
0:00:09.1]} 63... Re1 {[%clk 0:00:06.1]} 64. g5 {[%clk 0:00:08.2]} 64... Re4+
{[%clk 0:00:06.1]} 65. Kg3 {[%clk 0:00:08.5]} 65... Rxf7 {[%clk 0:00:06.6]} 66.
Rxf7+ {[%clk 0:00:07.8]} 66... Kxf7 {[%clk 0:00:07.5]} 67. h6 {[%clk 0:00:07.8]}
67... Re8 {[%clk 0:00:05.7]} 68. h7 {[%clk 0:00:07.7]} 68... Rh8 {[%clk
0:00:06.5]} 69. Kg4 {[%clk 0:00:07.7]} 69... Kg7 {[%clk 0:00:06.9]} 70. Rh6
{[%clk 0:00:08.1]} 70... a5 {[%clk 0:00:05.7]} 71. c5 {[%clk 0:00:08.2]} 71...
a4 {[%clk 0:00:05.8]} 72. bxa4 {[%clk 0:00:07.9]} 72... Kf7 {[%clk 0:00:04.9]}
73. c6 {[%clk 0:00:07.6]} 73... Kg7 {[%clk 0:00:05.8]} 74. c7 {[%clk 0:00:07.9]}
74... Rxh7 {[%clk 0:00:05.6]} 75. Rxh7+ {[%clk 0:00:07.8]} 75... Kxh7 {[%clk
0:00:06.4]} 76. c8=Q {[%clk 0:00:08]} 1-0

[Event "Late-Titled-Tuesday-Blitz-April-30-2024"]
[Site "Chess.com"]
[Date "2024.04.30"]
[Round "8"]
[White "AryanTari"]
[Black "Revan_2002"]
[Result "1/2-1/2"]
[WhiteElo "2996"]
[BlackElo "2772"]
[TimeControl "180+1"]
[EndTime "15:29:35 PDT"]
[Termination "Game drawn - insufficient material"]

1. e4 {[%clk 0:03:00.9]} 1... e5 {[%clk 0:02:59.9]} 2. Nf3 {[%clk 0:03:00.9]}
2... Nc6 {[%clk 0:03:00]} 3. d4 {[%clk 0:03:01.3]} 3... exd4 {[%clk 0:02:59.8]}
4. Nxd4 {[%clk 0:03:02.2]} 4... Bc5 {[%clk 0:02:59.6]} 5. Nxc6 {[%clk
0:03:02.3]} 5... Qf6 {[%clk 0:02:57]} 6. Qf3 {[%clk 0:03:02.3]} 6... bxc6 {[%clk
0:02:50]} 7. Nd2 {[%clk 0:03:01.6]} 7... Qxf3 {[%clk 0:02:37.2]} 8. gxf3 {[%clk
0:03:00]} 8... Ne7 {[%clk 0:02:37.3]} 9. Nb3 {[%clk 0:02:59.9]} 9... Bb6 {[%clk
0:02:35.4]} 10. a4 {[%clk 0:02:59.3]} 10... a5 {[%clk 0:02:35.8]} 11. Bd2 {[%clk
0:02:56.6]} 11... d5 {[%clk 0:02:35.3]} 12. c4 {[%clk 0:02:41.3]} 12... dxc4
{[%clk 0:02:26.3]} 13. Bxc4 {[%clk 0:02:41.1]} 13... O-O {[%clk 0:02:24.3]} 14.
Bc3 {[%clk 0:02:33.5]} 14... Be6 {[%clk 0:02:22]} 15. Nd2 {[%clk 0:02:32.1]}
15... Bxc4 {[%clk 0:02:16.4]} 16. Nxc4 {[%clk 0:02:33]} 16... Ng6 {[%clk
0:02:15.1]} 17. O-O-O {[%clk 0:02:08.9]} 17... Bxf2 {[%clk 0:02:11.5]} 18. Rd7
{[%clk 0:02:01.1]} 18... Nh4 {[%clk 0:01:45.7]} 19. Rxc7 {[%clk 0:01:44.8]}
19... c5 {[%clk 0:01:26.5]} 20. Rf1 {[%clk 0:00:56.1]} 20... Bd4 {[%clk
0:01:18.4]} 21. Bxa5 {[%clk 0:00:56]} 21... Rfb8 {[%clk 0:00:52.1]} 22. Kc2
{[%clk 0:00:56.1]} 22... Ng2 {[%clk 0:00:50.5]} 23. Rb1 {[%clk 0:00:20.5]} 23...
Ne3+ {[%clk 0:00:36.7]} 24. Nxe3 {[%clk 0:00:20.9]} 24... Rxa5 {[%clk
0:00:37.3]} 25. Nf5 {[%clk 0:00:18.3]} 25... Rxa4 {[%clk 0:00:32.2]} 26. b4
{[%clk 0:00:05.6]} 26... Be5 {[%clk 0:00:16.2]} 27. Rxc5 {[%clk 0:00:05.3]}
27... Bxh2 {[%clk 0:00:15.4]} 28. Rc4 {[%clk 0:00:04.2]} 28... g6 {[%clk
0:00:14.5]} 29. Ne7+ {[%clk 0:00:04.7]} 29... Kg7 {[%clk 0:00:13.1]} 30. Nc6
{[%clk 0:00:05.6]} 30... Ra2+ {[%clk 0:00:10.1]} 31. Kb3 {[%clk 0:00:05.6]}
31... Rba8 {[%clk 0:00:09.8]} 32. Na5 {[%clk 0:00:03.3]} 32... Rf2 {[%clk
0:00:08.8]} 33. Rc3 {[%clk 0:00:03.3]} 33... Be5 {[%clk 0:00:09]} 34. Rd3 {[%clk
0:00:03.9]} 34... h5 {[%clk 0:00:08.8]} 35. Rh1 {[%clk 0:00:03.2]} 35... Bg3
{[%clk 0:00:08]} 36. Nc4 {[%clk 0:00:03.6]} 36... h4 {[%clk 0:00:07]} 37. b5
{[%clk 0:00:04.2]} 37... Rb8 {[%clk 0:00:07.5]} 38. b6 {[%clk 0:00:04.8]} 38...
g5 {[%clk 0:00:07.8]} 39. Kb4 {[%clk 0:00:05.3]} 39... Kg6 {[%clk 0:00:05.7]}
40. Kc5 {[%clk 0:00:05.7]} 40... f5 {[%clk 0:00:05.9]} 41. Kc6 {[%clk
0:00:04.7]} 41... fxe4 {[%clk 0:00:05.6]} 42. fxe4 {[%clk 0:00:05.4]} 42... Bf4
{[%clk 0:00:05]} 43. b7 {[%clk 0:00:05.1]} 43... Rc2 {[%clk 0:00:05.2]} 44. Rd4
{[%clk 0:00:01.6]} 44... Be3 {[%clk 0:00:05.7]} 45. Kd5 {[%clk 0:00:01.8]} 45...
Bxd4 {[%clk 0:00:05.7]} 46. Kxd4 {[%clk 0:00:02]} 46... Rxb7 {[%clk 0:00:06.2]}
47. Ne5+ {[%clk 0:00:02.3]} 47... Kh5 {[%clk 0:00:06.8]} 48. Rf1 {[%clk
0:00:02.2]} 48... Rd2+ {[%clk 0:00:04.9]} 49. Ke3 {[%clk 0:00:02.5]} 49... Rd8
{[%clk 0:00:04.5]} 50. Nc6 {[%clk 0:00:02.9]} 50... Re8 {[%clk 0:00:04.4]} 51.
e5 {[%clk 0:00:03.2]} 51... h3 {[%clk 0:00:04.5]} 52. Ke4 {[%clk 0:00:03.3]}
52... h2 {[%clk 0:00:04.1]} 53. Nd4 {[%clk 0:00:03.5]} 53... g4 {[%clk
0:00:03.5]} 54. Rh1 {[%clk 0:00:02]} 54... g3 {[%clk 0:00:02.8]} 55. Kf3 {[%clk
0:00:02.9]} 55... Rxe5 {[%clk 0:00:01.3]} 56. Kxg3 {[%clk 0:00:03.4]} 56... Rg7+
{[%clk 0:00:01.5]} 57. Kxh2 {[%clk 0:00:02.9]} 57... Re4 {[%clk 0:00:01.7]} 58.
Nf3 {[%clk 0:00:03]} 58... Re2+ {[%clk 0:00:01.5]} 59. Kh3 {[%clk 0:00:03]}
59... Re3 {[%clk 0:00:01.4]} 60. Rf1 {[%clk 0:00:03.1]} 60... Rg6 {[%clk
0:00:01.8]} 61. Rf2 {[%clk 0:00:03.7]} 61... Rg7 {[%clk 0:00:01.8]} 62. Rf1
{[%clk 0:00:04.4]} 62... Rg6 {[%clk 0:00:02.2]} 63. Rf2 {[%clk 0:00:05.1]} 63...
Rg8 {[%clk 0:00:02.4]} 64. Rf1 {[%clk 0:00:05.7]} 64... Kh6 {[%clk 0:00:03.1]}
65. Rf2 {[%clk 0:00:06]} 65... Rg5 {[%clk 0:00:03.6]} 66. Rf1 {[%clk 0:00:05.7]}
66... Rg6 {[%clk 0:00:03.4]} 67. Rf2 {[%clk 0:00:06.1]} 67... Re4 {[%clk
0:00:03.6]} 68. Nh2 {[%clk 0:00:05.5]} 68... Kh5 {[%clk 0:00:02.7]} 69. Rf5+
{[%clk 0:00:05.4]} 69... Kh6 {[%clk 0:00:02.4]} 70. Rf3 {[%clk 0:00:06.2]} 70...
Kg7 {[%clk 0:00:02.7]} 71. Rg3 {[%clk 0:00:06.6]} 71... Rxg3+ {[%clk 0:00:02.6]}
72. Kxg3 {[%clk 0:00:07.5]} 72... Rb4 {[%clk 0:00:03]} 73. Nf3 {[%clk
0:00:08.1]} 73... Kg6 {[%clk 0:00:03.5]} 74. Kf2 {[%clk 0:00:08.7]} 74... Kf5
{[%clk 0:00:04]} 75. Ke3 {[%clk 0:00:09.2]} 75... Rb3+ {[%clk 0:00:03.5]} 76.
Ke2 {[%clk 0:00:09.9]} 76... Kf4 {[%clk 0:00:03.9]} 77. Nd2 {[%clk 0:00:10.5]}
77... Re3+ {[%clk 0:00:04.1]} 78. Kf2 {[%clk 0:00:10.9]} 78... Rh3 {[%clk
0:00:04.7]} 79. Ke2 {[%clk 0:00:11.3]} 79... Rh2+ {[%clk 0:00:05.2]} 80. Kd3
{[%clk 0:00:11.8]} 80... Rxd2+ {[%clk 0:00:05.6]} 81. Kxd2 {[%clk 0:00:12.3]}
1/2-1/2